[Event "Titled Tuesday Blitz February 28 Early 2023"]
[White "Chernov, Mikhail"]
[Black "Kaufman, Raymond"]
[WhiteFideId "24143170"]
[BlackFideId "2015056"]
[WhiteElo "2113"]
[BlackElo "2321"]
[Result "0-1"]
[Round "09"]
[TimeControl "180+2"]
[Date "2023.02.28"]
[WhiteClock "0:00:01"]
[BlackClock "0:00:20"]

1. e4 {[%clk 0:02:40]}  e5 {[%clk 0:02:58]} 2. Nc3 {[%clk 0:02:40]}  Nc6 {[%clk 0:02:57]} 3. Bc4 {[%clk 0:02:41]}  Nf6 {[%clk 0:02:54]} 4. d3 {[%clk 0:02:41]}  Bb4 {[%clk 0:02:49]} 5. Ne2 {[%clk 0:02:41]}  Na5 {[%clk 0:02:49]} 6. Bb3 {[%clk 0:02:27]}  c6 {[%clk 0:02:43]} 7. O-O {[%clk 0:02:26]}  d5 {[%clk 0:02:32]} 8. exd5 {[%clk 0:02:23]}  Nxb3 {[%clk 0:02:30]} 9. axb3 {[%clk 0:02:21]}  Nxd5 {[%clk 0:02:23]} 10. Nxd5 {[%clk 0:02:18]}  cxd5 {[%clk 0:02:16]} 11. d4 {[%clk 0:02:14]}  e4 {[%clk 0:02:14]} 12. f3 {[%clk 0:02:07]}  O-O {[%clk 0:02:09]} 13. fxe4 {[%clk 0:02:07]}  dxe4 {[%clk 0:02:08]} 14. Bf4 {[%clk 0:02:02]}  Bg4 {[%clk 0:02:02]} 15. h3 {[%clk 0:01:58]}  Bxe2 {[%clk 0:01:56]} 16. Qxe2 {[%clk 0:01:59]}  Qxd4+ {[%clk 0:01:56]} 17. Kh1 {[%clk 0:01:54]}  Qxb2 {[%clk 0:01:53]} 18. Qxe4 {[%clk 0:01:51]}  Bc5 {[%clk 0:01:38]} 19. Be5 {[%clk 0:01:22]}  Rfe8 {[%clk 0:01:20]} 20. Rae1 {[%clk 0:01:08]}  Qa3 {[%clk 0:01:13]} 21. Qg4 {[%clk 0:01:02]}  Bf8 {[%clk 0:01:11]} 22. Rxf7 {[%clk 0:00:16]}  Rxe5 {[%clk 0:01:02]} 23. Qc4 {[%clk 0:00:03]}  Rxe1+ {[%clk 0:00:58]} 24. Rf1+ {[%clk 0:00:03]}  Kh8 {[%clk 0:00:57]} 25. Rxe1 {[%clk 0:00:04]}  h6 {[%clk 0:00:54]} 26. Qf7 {[%clk 0:00:04]}  Qd6 {[%clk 0:00:49]} 27. Qxb7 {[%clk 0:00:04]}  Rd8 {[%clk 0:00:46]} 28. Qxa7 {[%clk 0:00:04]}  Qg3 {[%clk 0:00:46]} 29. Qe3 {[%clk 0:00:04]}  Qxe3 {[%clk 0:00:43]} 30. Rxe3 {[%clk 0:00:05]}  Rd1+ {[%clk 0:00:43]} 31. Kh2 {[%clk 0:00:05]}  Bd6+ {[%clk 0:00:44]} 32. g3 {[%clk 0:00:06]}  Rd2+ {[%clk 0:00:45]} 33. Kg1 {[%clk 0:00:06]}  Rxc2 {[%clk 0:00:46]} 34. Kf1 {[%clk 0:00:06]}  Rb2 {[%clk 0:00:45]} 35. g4 {[%clk 0:00:07]}  Bf4 {[%clk 0:00:44]} 36. Rd3 {[%clk 0:00:07]}  g5 {[%clk 0:00:43]} 37. Ke1 {[%clk 0:00:05]}  Kg7 {[%clk 0:00:43]} 38. Kd1 {[%clk 0:00:06]}  Kf6 {[%clk 0:00:42]} 39. Rf3 {[%clk 0:00:06]}  Ke5 {[%clk 0:00:42]} 40. Rc3 {[%clk 0:00:07]}  Kd4 {[%clk 0:00:41]} 41. Rc4+ {[%clk 0:00:07]}  Kd3 {[%clk 0:00:41]} 42. Ke1 {[%clk 0:00:07]}  Be3 {[%clk 0:00:37]} 43. Kf1 {[%clk 0:00:07]}  Rf2+ {[%clk 0:00:36]} 44. Ke1 {[%clk 0:00:07]}  Re2+ {[%clk 0:00:29]} 45. Kf1 {[%clk 0:00:07]}  Rb2 {[%clk 0:00:28]} 46. Rc6 {[%clk 0:00:07]}  Rxb3 {[%clk 0:00:27]} 47. Rxh6 {[%clk 0:00:07]}  Bf4 {[%clk 0:00:27]} 48. Re6 {[%clk 0:00:07]}  Rb1+ {[%clk 0:00:26]} 49. Kg2 {[%clk 0:00:07]}  Rb2+ {[%clk 0:00:26]} 50. Kf3 {[%clk 0:00:07]}  Rh2 {[%clk 0:00:26]} 51. Rh6 {[%clk 0:00:06]}  Bd2 {[%clk 0:00:25]} 52. h4 {[%clk 0:00:06]}  gxh4 {[%clk 0:00:25]} 53. Rd6+ {[%clk 0:00:01]}  Kc4 {[%clk 0:00:25]} 54. g5 {[%clk 0:00:01]}  Bxg5 {[%clk 0:00:24]} 55. Kg4 {[%clk 0:00:01]}  h3 {[%clk 0:00:20]} 0-1


[Site "https://www.chess.com"]

[Event "Titled Tuesday Blitz February 28 Early 2023"]
[White "Necula, Iulian"]
[Black "Alahakoon, Isuru"]
[WhiteFideId "1232380"]
[BlackFideId "9900993"]
[WhiteElo "1790"]
[BlackElo "1995"]
[Result "0-1"]
[Round "09"]
[TimeControl "180+2"]
[Date "2023.02.28"]
[WhiteClock "0:00:29"]
[BlackClock "0:00:36"]

1. d4 {[%clk 0:03:00]}  d5 {[%clk 0:02:59]} 2. Nc3 {[%clk 0:03:00]}  Nf6 {[%clk 0:02:59]} 3. Bf4 {[%clk 0:02:58]}  e6 {[%clk 0:02:59]} 4. Nb5 {[%clk 0:02:57]}  Bb4+ {[%clk 0:02:57]} 5. c3 {[%clk 0:02:57]}  Ba5 {[%clk 0:02:57]} 6. a4 {[%clk 0:02:57]}  a6 {[%clk 0:02:52]} 7. b4 {[%clk 0:02:56]}  Bxb4 {[%clk 0:02:52]} 8. cxb4 {[%clk 0:02:55]}  axb5 {[%clk 0:02:51]} 9. a5 {[%clk 0:02:51]}  Qe7 {[%clk 0:02:39]} 10. Bd2 {[%clk 0:02:47]}  Nc6 {[%clk 0:02:37]} 11. e3 {[%clk 0:02:35]}  Nxb4 {[%clk 0:02:26]} 12. Bxb5+ {[%clk 0:02:31]}  c6 {[%clk 0:02:26]} 13. Be2 {[%clk 0:02:27]}  Ne4 {[%clk 0:02:25]} 14. Nf3 {[%clk 0:02:21]}  Nxd2 {[%clk 0:02:24]} 15. Nxd2 {[%clk 0:02:18]}  O-O {[%clk 0:02:21]} 16. O-O {[%clk 0:02:17]}  Na6 {[%clk 0:02:03]} 17. Bxa6 {[%clk 0:02:15]}  Rxa6 {[%clk 0:02:02]} 18. Nb3 {[%clk 0:02:14]}  Ra8 {[%clk 0:01:54]} 19. Nc5 {[%clk 0:02:14]}  e5 {[%clk 0:01:54]} 20. Qb3 {[%clk 0:02:06]}  exd4 {[%clk 0:01:53]} 21. exd4 {[%clk 0:02:06]}  Qc7 {[%clk 0:01:53]} 22. Qb6 {[%clk 0:01:56]}  Qf4 {[%clk 0:01:45]} 23. Nxb7 {[%clk 0:01:45]}  Qg5 {[%clk 0:01:29]} 24. f4 {[%clk 0:01:35]}  Qf6 {[%clk 0:01:24]} 25. a6 {[%clk 0:01:32]}  Bf5 {[%clk 0:01:11]} 26. Rac1 {[%clk 0:01:27]}  Rfc8 {[%clk 0:01:04]} 27. Rc3 {[%clk 0:01:14]}  h5 {[%clk 0:01:00]} 28. Rfc1 {[%clk 0:01:08]}  Be4 {[%clk 0:01:00]} 29. Rxc6 {[%clk 0:01:04]}  Rxc6 {[%clk 0:01:00]} 30. Rxc6 {[%clk 0:00:50]}  Qxf4 {[%clk 0:01:00]} 31. Qc5 {[%clk 0:00:33]}  Qe3+ {[%clk 0:00:37]} 32. Kf1 {[%clk 0:00:29]}  Bd3# {[%clk 0:00:36]} 0-1


[Site "https://www.chess.com"]

[Event "Titled Tuesday Blitz February 28 Early 2023"]
[White "Vaglio Munoz, Jaime"]
[Black "Kohler, Aran"]
[WhiteFideId "6500145"]
[BlackFideId "1002856"]
[WhiteElo "2199"]
[BlackElo "2236"]
[Result "1-0"]
[Round "09"]
[TimeControl "180+2"]
[Date "2023.02.28"]
[WhiteClock "0:00:25"]
[BlackClock "0:00:07"]

1. Nf3 {[%clk 0:03:00]}  d5 {[%clk 0:02:54]} 2. b3 {[%clk 0:02:57]}  Nf6 {[%clk 0:02:53]} 3. Bb2 {[%clk 0:02:56]}  Bf5 {[%clk 0:02:53]} 4. Ne5 {[%clk 0:02:54]}  e6 {[%clk 0:02:50]} 5. f4 {[%clk 0:02:54]}  Nbd7 {[%clk 0:02:45]} 6. g3 {[%clk 0:02:54]}  Nxe5 {[%clk 0:02:44]} 7. fxe5 {[%clk 0:02:53]}  Nd7 {[%clk 0:02:44]} 8. Bg2 {[%clk 0:02:53]}  c5 {[%clk 0:02:39]} 9. Nc3 {[%clk 0:02:47]}  d4 {[%clk 0:02:25]} 10. Ne4 {[%clk 0:02:43]}  Nxe5 {[%clk 0:02:22]} 11. O-O {[%clk 0:02:43]}  Nc6 {[%clk 0:02:20]} 12. d3 {[%clk 0:02:39]}  Be7 {[%clk 0:02:18]} 13. h3 {[%clk 0:02:38]}  O-O {[%clk 0:02:16]} 14. g4 {[%clk 0:02:37]}  Bg6 {[%clk 0:02:16]} 15. Bc1 {[%clk 0:02:37]}  f5 {[%clk 0:02:10]} 16. Nd2 {[%clk 0:02:14]}  Rc8 {[%clk 0:02:03]} 17. a4 {[%clk 0:02:12]}  fxg4 {[%clk 0:01:48]} 18. hxg4 {[%clk 0:02:13]}  Rxf1+ {[%clk 0:01:45]} 19. Qxf1 {[%clk 0:02:09]}  Qc7 {[%clk 0:01:40]} 20. Qf2 {[%clk 0:01:59]}  Rf8 {[%clk 0:01:40]} 21. Qe1 {[%clk 0:01:57]}  Ne5 {[%clk 0:01:35]} 22. Bh3 {[%clk 0:01:50]}  Bg5 {[%clk 0:01:28]} 23. Nf1 {[%clk 0:01:42]}  Be7 {[%clk 0:01:22]} 24. Bd2 {[%clk 0:01:31]}  h6 {[%clk 0:01:18]} 25. a5 {[%clk 0:01:14]}  Nf7 {[%clk 0:01:05]} 26. Kg2 {[%clk 0:01:10]}  Ng5 {[%clk 0:01:03]} 27. Qg3 {[%clk 0:01:08]}  Qc6+ {[%clk 0:00:58]} 28. Kg1 {[%clk 0:01:03]}  Bd6 {[%clk 0:00:55]} 29. Qh4 {[%clk 0:01:02]}  Be7 {[%clk 0:00:48]} 30. Bg2 {[%clk 0:01:01]}  Qd7 {[%clk 0:00:37]} 31. Qe1 {[%clk 0:00:48]}  Kh7 {[%clk 0:00:36]} 32. Nh2 {[%clk 0:00:46]}  e5 {[%clk 0:00:34]} 33. Qg3 {[%clk 0:00:40]}  e4 {[%clk 0:00:33]} 34. Rf1 {[%clk 0:00:38]}  Bd6 {[%clk 0:00:31]} 35. Qh4 {[%clk 0:00:37]}  Bxh2+ {[%clk 0:00:28]} 36. Kxh2 {[%clk 0:00:35]}  Rxf1 {[%clk 0:00:28]} 37. Bxf1 {[%clk 0:00:35]}  e3 {[%clk 0:00:28]} 38. Be1 {[%clk 0:00:34]}  Qc7+ {[%clk 0:00:28]} 39. Qg3 {[%clk 0:00:33]}  Qxg3+ {[%clk 0:00:28]} 40. Kxg3 {[%clk 0:00:34]}  b6 {[%clk 0:00:27]} 41. a6 {[%clk 0:00:33]}  Be8 {[%clk 0:00:21]} 42. Kf4 {[%clk 0:00:33]}  Bb5 {[%clk 0:00:20]} 43. Ke5 {[%clk 0:00:33]}  Bxa6 {[%clk 0:00:21]} 44. Kd6 {[%clk 0:00:33]}  Bb7 {[%clk 0:00:22]} 45. Kc7 {[%clk 0:00:33]}  Bd5 {[%clk 0:00:20]} 46. Bg3 {[%clk 0:00:31]}  Ne6+ {[%clk 0:00:17]} 47. Kd6 {[%clk 0:00:29]}  Bxb3 {[%clk 0:00:17]} 48. cxb3 {[%clk 0:00:28]}  Ng5 {[%clk 0:00:15]} 49. Bf4 {[%clk 0:00:28]}  Kg6 {[%clk 0:00:15]} 50. Bg2 {[%clk 0:00:27]}  Kf6 {[%clk 0:00:15]} 51. Be5+ {[%clk 0:00:26]}  Kg6 {[%clk 0:00:14]} 52. Kc7 {[%clk 0:00:24]}  Nf7 {[%clk 0:00:13]} 53. Bf4 {[%clk 0:00:24]}  Kf6 {[%clk 0:00:13]} 54. Kb7 {[%clk 0:00:23]}  g5 {[%clk 0:00:12]} 55. Bg3 {[%clk 0:00:23]}  Ne5 {[%clk 0:00:11]} 56. Bxe5+ {[%clk 0:00:18]}  Kxe5 {[%clk 0:00:12]} 57. Bf3 {[%clk 0:00:18]}  Kf4 {[%clk 0:00:11]} 58. Kxa7 {[%clk 0:00:18]}  Kg3 {[%clk 0:00:11]} 59. Kxb6 {[%clk 0:00:17]}  h5 {[%clk 0:00:10]} 60. gxh5 {[%clk 0:00:17]}  g4 {[%clk 0:00:11]} 61. Bxg4 {[%clk 0:00:17]}  Kxg4 {[%clk 0:00:11]} 62. h6 {[%clk 0:00:18]}  Kg3 {[%clk 0:00:12]} 63. h7 {[%clk 0:00:19]}  Kf2 {[%clk 0:00:13]} 64. h8=Q {[%clk 0:00:19]}  Kxe2 {[%clk 0:00:13]} 65. Kxc5 {[%clk 0:00:19]}  Kd2 {[%clk 0:00:14]} 66. Qxd4 {[%clk 0:00:19]}  e2 {[%clk 0:00:09]} 67. Qf2 {[%clk 0:00:20]}  Kd1 {[%clk 0:00:08]} 68. Qxe2+ {[%clk 0:00:20]}  Kc1 {[%clk 0:00:06]} 69. d4 {[%clk 0:00:21]}  Kb1 {[%clk 0:00:06]} 70. d5 {[%clk 0:00:22]}  Ka1 {[%clk 0:00:07]} 71. b4 {[%clk 0:00:23]}  Kb1 {[%clk 0:00:06]} 72. Kc4 {[%clk 0:00:24]}  Ka1 {[%clk 0:00:07]} 73. Kb3 {[%clk 0:00:25]}  Kb1 {[%clk 0:00:07]} 74. Qb2# {[%clk 0:00:25]} 1-0


[Site "https://www.chess.com"]

[Event "Titled Tuesday Blitz February 28 Early 2023"]
[White "Kiseljova, Marya"]
[Black "Tiarks, Jann-Christian"]
[WhiteFideId "4155009"]
[BlackFideId "12951595"]
[WhiteElo "1807"]
[BlackElo "2194"]
[Result "0-1"]
[Round "09"]
[TimeControl "180+2"]
[Date "2023.02.28"]
[WhiteClock "0:00:03"]
[BlackClock "0:00:09"]

1. d4 {[%clk 0:02:56]}  c5 {[%clk 0:02:57]} 2. d5 {[%clk 0:02:55]}  d6 {[%clk 0:02:56]} 3. Nc3 {[%clk 0:02:55]}  e5 {[%clk 0:02:57]} 4. e4 {[%clk 0:02:54]}  Nf6 {[%clk 0:02:57]} 5. h3 {[%clk 0:02:51]}  Be7 {[%clk 0:02:55]} 6. Be3 {[%clk 0:02:50]}  Nbd7 {[%clk 0:02:51]} 7. Nf3 {[%clk 0:02:41]}  Nf8 {[%clk 0:02:48]} 8. Bb5+ {[%clk 0:02:20]}  Bd7 {[%clk 0:02:47]} 9. a4 {[%clk 0:02:21]}  Ng6 {[%clk 0:02:46]} 10. Nd2 {[%clk 0:02:03]}  O-O {[%clk 0:02:41]} 11. g4 {[%clk 0:01:57]}  a6 {[%clk 0:02:28]} 12. Be2 {[%clk 0:01:50]}  Nf4 {[%clk 0:02:03]} 13. Bf3 {[%clk 0:01:26]}  b5 {[%clk 0:01:55]} 14. axb5 {[%clk 0:01:08]}  axb5 {[%clk 0:01:56]} 15. Ne2 {[%clk 0:01:05]}  Nxe2 {[%clk 0:01:47]} 16. Kxe2 {[%clk 0:01:00]}  b4 {[%clk 0:01:17]} 17. Kf1 {[%clk 0:00:39]}  Bb5+ {[%clk 0:01:14]} 18. Kg2 {[%clk 0:00:39]}  Nd7 {[%clk 0:01:15]} 19. b3 {[%clk 0:00:35]}  Nb6 {[%clk 0:01:01]} 20. Rxa8 {[%clk 0:00:34]}  Qxa8 {[%clk 0:01:00]} 21. Qa1 {[%clk 0:00:32]}  h6 {[%clk 0:00:56]} 22. Kg3 {[%clk 0:00:23]}  Bg5 {[%clk 0:00:55]} 23. h4 {[%clk 0:00:14]}  Bxe3 {[%clk 0:00:54]} 24. fxe3 {[%clk 0:00:15]}  Qxa1 {[%clk 0:00:48]} 25. Rxa1 {[%clk 0:00:14]}  Ra8 {[%clk 0:00:49]} 26. Rxa8+ {[%clk 0:00:14]}  Nxa8 {[%clk 0:00:50]} 27. g5 {[%clk 0:00:14]}  hxg5 {[%clk 0:00:47]} 28. hxg5 {[%clk 0:00:15]}  Nb6 {[%clk 0:00:40]} 29. Bg4 {[%clk 0:00:13]}  Kf8 {[%clk 0:00:39]} 30. Kh4 {[%clk 0:00:13]}  Ke7 {[%clk 0:00:38]} 31. Kh5 {[%clk 0:00:13]}  c4 {[%clk 0:00:28]} 32. Kh4 {[%clk 0:00:11]}  c3 {[%clk 0:00:26]} 33. Nf3 {[%clk 0:00:10]}  Nd7 {[%clk 0:00:17]} 34. Kg3 {[%clk 0:00:10]}  Nc5 {[%clk 0:00:17]} 35. Bf5 {[%clk 0:00:07]}  Nxb3 {[%clk 0:00:17]} 36. Ne1 {[%clk 0:00:04]}  Nc5 {[%clk 0:00:15]} 37. g6 {[%clk 0:00:04]}  f6 {[%clk 0:00:12]} 38. Kf2 {[%clk 0:00:04]}  Kd8 {[%clk 0:00:10]} 39. Kf3 {[%clk 0:00:03]}  Kc7 {[%clk 0:00:11]} 40. Kf2 {[%clk 0:00:04]}  Kb6 {[%clk 0:00:12]} 41. Nf3 {[%clk 0:00:04]}  Ba4 {[%clk 0:00:11]} 42. Ne1 {[%clk 0:00:04]}  Bxc2 {[%clk 0:00:09]} 43. Nxc2 {[%clk 0:00:04]}  b3 {[%clk 0:00:10]} 44. Na3 {[%clk 0:00:03]}  c2 {[%clk 0:00:09]} 0-1


[Site "https://www.chess.com"]

[Event "Titled Tuesday Blitz February 28 Early 2023"]
[White "Kostiukov, Alexandr"]
[Black "Fernandez Hernandez, Gerardo"]
[WhiteFideId "14108100"]
[BlackFideId "2207400"]
[WhiteElo "2202"]
[BlackElo "2199"]
[Result "1-0"]
[Round "09"]
[TimeControl "180+2"]
[Date "2023.02.28"]
[WhiteClock "0:00:11"]
[BlackClock "0:00:04"]

1. g3 {[%clk 0:02:54]}  Nf6 {[%clk 0:02:59]} 2. Bg2 {[%clk 0:02:55]}  g6 {[%clk 0:02:59]} 3. Nf3 {[%clk 0:02:52]}  Bg7 {[%clk 0:02:57]} 4. O-O {[%clk 0:02:53]}  O-O {[%clk 0:02:57]} 5. c4 {[%clk 0:02:53]}  d6 {[%clk 0:02:57]} 6. d4 {[%clk 0:02:53]}  Nbd7 {[%clk 0:02:56]} 7. Nc3 {[%clk 0:02:54]}  e5 {[%clk 0:02:55]} 8. h3 {[%clk 0:02:55]}  Re8 {[%clk 0:02:47]} 9. e4 {[%clk 0:02:54]}  exd4 {[%clk 0:02:45]} 10. Nxd4 {[%clk 0:02:54]}  Nc5 {[%clk 0:02:45]} 11. Re1 {[%clk 0:02:53]}  c6 {[%clk 0:02:36]} 12. Nb3 {[%clk 0:02:48]}  Be6 {[%clk 0:01:53]} 13. Nxc5 {[%clk 0:02:26]}  dxc5 {[%clk 0:01:54]} 14. Qe2 {[%clk 0:02:14]}  Nd7 {[%clk 0:01:14]} 15. Rd1 {[%clk 0:01:54]}  Bxc3 {[%clk 0:00:58]} 16. bxc3 {[%clk 0:01:53]}  Qf6 {[%clk 0:00:54]} 17. Bf4 {[%clk 0:01:36]}  Ne5 {[%clk 0:00:27]} 18. Bxe5 {[%clk 0:00:59]}  Qxe5 {[%clk 0:00:28]} 19. Rac1 {[%clk 0:00:46]}  Rad8 {[%clk 0:00:27]} 20. Rxd8 {[%clk 0:00:45]}  Rxd8 {[%clk 0:00:27]} 21. f4 {[%clk 0:00:46]}  Qd6 {[%clk 0:00:25]} 22. Rb1 {[%clk 0:00:31]}  b6 {[%clk 0:00:20]} 23. e5 {[%clk 0:00:30]}  Qd2 {[%clk 0:00:18]} 24. Qxd2 {[%clk 0:00:28]}  Rxd2 {[%clk 0:00:19]} 25. a4 {[%clk 0:00:24]}  Bxc4 {[%clk 0:00:14]} 26. Bxc6 {[%clk 0:00:23]}  Rd3 {[%clk 0:00:13]} 27. a5 {[%clk 0:00:20]}  Rxg3+ {[%clk 0:00:12]} 28. Kf2 {[%clk 0:00:19]}  Rxc3 {[%clk 0:00:12]} 29. axb6 {[%clk 0:00:20]}  axb6 {[%clk 0:00:12]} 30. Rxb6 {[%clk 0:00:20]}  Rxh3 {[%clk 0:00:12]} 31. Bf3 {[%clk 0:00:17]}  Be6 {[%clk 0:00:10]} 32. Kg2 {[%clk 0:00:13]}  Rh4 {[%clk 0:00:09]} 33. Kg3 {[%clk 0:00:12]}  Rh3+ {[%clk 0:00:09]} 34. Kg2 {[%clk 0:00:13]}  c4 {[%clk 0:00:06]} 35. Rxe6 {[%clk 0:00:11]}  Rxf3 {[%clk 0:00:03]} 36. Re8+ {[%clk 0:00:11]}  Kg7 {[%clk 0:00:04]} 37. Kxf3 {[%clk 0:00:11]} 1-0


[Site "https://www.chess.com"]

[Event "Titled Tuesday Blitz February 28 Early 2023"]
[White "Manon-og, Ramon Jr."]
[Black "Winkels, Marcel"]
[WhiteFideId "5200776"]
[BlackFideId "1003887"]
[WhiteElo "2325"]
[BlackElo "1900"]
[Result "1-0"]
[Round "09"]
[TimeControl "180+2"]
[Date "2023.02.28"]
[WhiteClock "0:01:56"]
[BlackClock "0:01:00"]

1. e4 {[%clk 0:03:00]}  c5 {[%clk 0:02:58]} 2. Nf3 {[%clk 0:03:00]}  e6 {[%clk 0:02:59]} 3. d4 {[%clk 0:03:00]}  cxd4 {[%clk 0:02:59]} 4. Nxd4 {[%clk 0:03:01]}  Nc6 {[%clk 0:02:59]} 5. Nxc6 {[%clk 0:03:01]}  bxc6 {[%clk 0:02:58]} 6. c4 {[%clk 0:03:02]}  Nf6 {[%clk 0:02:55]} 7. Nc3 {[%clk 0:03:02]}  Bb4 {[%clk 0:02:54]} 8. Bd3 {[%clk 0:03:02]}  d5 {[%clk 0:02:52]} 9. cxd5 {[%clk 0:03:02]}  cxd5 {[%clk 0:02:51]} 10. Qa4+ {[%clk 0:03:01]}  Bd7 {[%clk 0:02:36]} 11. Qxb4 {[%clk 0:03:01]}  Rb8 {[%clk 0:02:32]} 12. Qa3 {[%clk 0:03:01]}  d4 {[%clk 0:02:30]} 13. Ne2 {[%clk 0:02:58]}  Bc6 {[%clk 0:02:27]} 14. Bg5 {[%clk 0:02:52]}  h6 {[%clk 0:02:24]} 15. Bxf6 {[%clk 0:02:52]}  Qxf6 {[%clk 0:02:24]} 16. O-O {[%clk 0:02:52]}  h5 {[%clk 0:02:16]} 17. Qd6 {[%clk 0:02:48]}  Rb6 {[%clk 0:02:13]} 18. Rac1 {[%clk 0:02:44]}  e5 {[%clk 0:02:09]} 19. Qxf6 {[%clk 0:02:31]}  gxf6 {[%clk 0:02:08]} 20. Rxc6 {[%clk 0:02:30]}  Rxc6 {[%clk 0:02:06]} 21. Bb5 {[%clk 0:02:31]}  Kd7 {[%clk 0:02:05]} 22. Rc1 {[%clk 0:02:29]}  Rc8 {[%clk 0:02:04]} 23. h4 {[%clk 0:02:22]}  Kd6 {[%clk 0:02:03]} 24. Rxc6+ {[%clk 0:02:21]}  Rxc6 {[%clk 0:02:04]} 25. Bxc6 {[%clk 0:02:22]}  Kxc6 {[%clk 0:02:04]} 26. g4 {[%clk 0:02:21]}  d3 {[%clk 0:01:56]} 27. Nc3 {[%clk 0:02:19]}  Kd7 {[%clk 0:01:50]} 28. b4 {[%clk 0:02:12]}  Ke8 {[%clk 0:01:50]} 29. a4 {[%clk 0:02:11]}  Kf8 {[%clk 0:01:50]} 30. b5 {[%clk 0:02:11]}  Kg7 {[%clk 0:01:50]} 31. a5 {[%clk 0:02:10]}  hxg4 {[%clk 0:01:50]} 32. b6 {[%clk 0:02:09]}  axb6 {[%clk 0:01:51]} 33. axb6 {[%clk 0:02:10]}  f5 {[%clk 0:01:48]} 34. b7 {[%clk 0:02:07]}  d2 {[%clk 0:01:06]} 35. b8=Q {[%clk 0:02:02]}  d1=Q+ {[%clk 0:01:07]} 36. Nxd1 {[%clk 0:02:02]}  f4 {[%clk 0:01:06]} 37. Qxe5+ {[%clk 0:02:02]}  f6 {[%clk 0:01:06]} 38. Qxf4 {[%clk 0:02:02]}  Kf7 {[%clk 0:01:06]} 39. Qxg4 {[%clk 0:02:02]}  Ke7 {[%clk 0:01:06]} 40. h5 {[%clk 0:02:02]}  Kf7 {[%clk 0:01:06]} 41. h6 {[%clk 0:02:03]}  Ke7 {[%clk 0:01:05]} 42. h7 {[%clk 0:02:04]}  Kd6 {[%clk 0:01:05]} 43. h8=Q {[%clk 0:02:04]}  Ke5 {[%clk 0:01:05]} 44. Qf5+ {[%clk 0:02:04]}  Kd4 {[%clk 0:01:05]} 45. Qhxf6+ {[%clk 0:02:04]}  Kd3 {[%clk 0:01:04]} 46. Qd5+ {[%clk 0:02:01]}  Ke2 {[%clk 0:01:02]} 47. Qb2+ {[%clk 0:01:56]}  Ke1 {[%clk 0:01:00]} 48. Qdd2# {[%clk 0:01:56]} 1-0


[Site "https://www.chess.com"]

[Event "Titled Tuesday Blitz February 28 Early 2023"]
[White "Ruiz Aguilar, Pablo Alexander"]
[Black "Fabris, Alberto"]
[WhiteFideId "4401352"]
[BlackFideId "801348"]
[WhiteElo "2138"]
[BlackElo "2129"]
[Result "0-1"]
[Round "09"]
[TimeControl "180+2"]
[Date "2023.02.28"]
[WhiteClock "0:00:01"]
[BlackClock "0:00:02"]

1. e4 {[%clk 0:02:55]}  c5 {[%clk 0:02:59]} 2. Nf3 {[%clk 0:02:55]}  d6 {[%clk 0:03:00]} 3. d4 {[%clk 0:02:56]}  cxd4 {[%clk 0:03:01]} 4. Nxd4 {[%clk 0:02:56]}  Nf6 {[%clk 0:03:01]} 5. Nc3 {[%clk 0:02:56]}  a6 {[%clk 0:03:02]} 6. Be2 {[%clk 0:02:56]}  e5 {[%clk 0:03:02]} 7. Nf3 {[%clk 0:02:56]}  Be7 {[%clk 0:03:02]} 8. Bg5 {[%clk 0:02:57]}  O-O {[%clk 0:03:01]} 9. Bxf6 {[%clk 0:02:57]}  Bxf6 {[%clk 0:03:01]} 10. Qd3 {[%clk 0:02:58]}  Be6 {[%clk 0:02:56]} 11. O-O-O {[%clk 0:02:57]}  Be7 {[%clk 0:02:56]} 12. Nd5 {[%clk 0:02:53]}  Bxd5 {[%clk 0:02:52]} 13. Qxd5 {[%clk 0:02:53]}  Nc6 {[%clk 0:02:50]} 14. Kb1 {[%clk 0:02:52]}  Qc7 {[%clk 0:02:46]} 15. c3 {[%clk 0:02:50]}  Rfd8 {[%clk 0:02:35]} 16. h4 {[%clk 0:02:48]}  Rac8 {[%clk 0:02:29]} 17. Ng5 {[%clk 0:02:47]}  Bf8 {[%clk 0:02:26]} 18. Bc4 {[%clk 0:02:31]}  Rd7 {[%clk 0:02:26]} 19. Ne6 {[%clk 0:02:25]}  Qa5 {[%clk 0:02:04]} 20. Nxf8 {[%clk 0:02:02]}  Rxf8 {[%clk 0:01:45]} 21. Qd3 {[%clk 0:01:56]}  b5 {[%clk 0:01:37]} 22. Bb3 {[%clk 0:01:54]}  b4 {[%clk 0:01:28]} 23. cxb4 {[%clk 0:01:28]}  Nxb4 {[%clk 0:01:24]} 24. Qd2 {[%clk 0:01:27]}  Qb6 {[%clk 0:01:22]} 25. h5 {[%clk 0:01:25]}  h6 {[%clk 0:01:18]} 26. Rh3 {[%clk 0:01:25]}  Nc6 {[%clk 0:01:08]} 27. Bd5 {[%clk 0:01:19]}  Nd4 {[%clk 0:01:02]} 28. Rg3 {[%clk 0:01:19]}  Kh8 {[%clk 0:01:01]} 29. Rc3 {[%clk 0:01:02]}  Qd8 {[%clk 0:00:56]} 30. f4 {[%clk 0:01:00]}  Qh4 {[%clk 0:00:51]} 31. fxe5 {[%clk 0:00:48]}  dxe5 {[%clk 0:00:50]} 32. Rh3 {[%clk 0:00:48]}  Qg5 {[%clk 0:00:43]} 33. Qxg5 {[%clk 0:00:47]}  hxg5 {[%clk 0:00:42]} 34. h6 {[%clk 0:00:47]}  g6 {[%clk 0:00:38]} 35. Rg3 {[%clk 0:00:47]}  f6 {[%clk 0:00:36]} 36. Rc3 {[%clk 0:00:43]}  Kh7 {[%clk 0:00:32]} 37. Ra3 {[%clk 0:00:37]}  Rd6 {[%clk 0:00:29]} 38. Rc1 {[%clk 0:00:33]}  Rfd8 {[%clk 0:00:27]} 39. Rc7+ {[%clk 0:00:32]}  R8d7 {[%clk 0:00:27]} 40. Rxd7+ {[%clk 0:00:29]}  Rxd7 {[%clk 0:00:27]} 41. Rxa6 {[%clk 0:00:30]}  f5 {[%clk 0:00:20]} 42. a4 {[%clk 0:00:26]}  g4 {[%clk 0:00:18]} 43. Rf6 {[%clk 0:00:23]}  f4 {[%clk 0:00:14]} 44. a5 {[%clk 0:00:23]}  f3 {[%clk 0:00:13]} 45. gxf3 {[%clk 0:00:22]}  g3 {[%clk 0:00:11]} 46. Bg8+ {[%clk 0:00:09]}  Kxh6 {[%clk 0:00:11]} 47. Bf7 {[%clk 0:00:08]}  g2 {[%clk 0:00:09]} 48. Rxg6+ {[%clk 0:00:08]}  Kh7 {[%clk 0:00:09]} 49. Rxg2 {[%clk 0:00:08]}  Rxf7 {[%clk 0:00:09]} 50. a6 {[%clk 0:00:08]}  Ra7 {[%clk 0:00:09]} 51. Rg5 {[%clk 0:00:06]}  Nxf3 {[%clk 0:00:08]} 52. Rf5 {[%clk 0:00:07]}  Nd2+ {[%clk 0:00:08]} 53. Kc2 {[%clk 0:00:08]}  Nxe4 {[%clk 0:00:07]} 54. Rxe5 {[%clk 0:00:08]}  Nd6 {[%clk 0:00:07]} 55. Re6 {[%clk 0:00:07]}  Rxa6 {[%clk 0:00:05]} 56. b3 {[%clk 0:00:06]}  Kg7 {[%clk 0:00:04]} 57. Kd3 {[%clk 0:00:05]}  Kf7 {[%clk 0:00:04]} 58. Rh6 {[%clk 0:00:04]}  Ke7 {[%clk 0:00:04]} 59. Rh7+ {[%clk 0:00:04]}  Ke6 {[%clk 0:00:04]} 60. Rh6+ {[%clk 0:00:04]}  Kd5 {[%clk 0:00:04]} 61. Rh5+ {[%clk 0:00:03]}  Kc6 {[%clk 0:00:05]} 62. Kc3 {[%clk 0:00:02]}  Ra1 {[%clk 0:00:04]} 63. Kb2 {[%clk 0:00:01]}  Rg1 {[%clk 0:00:04]} 64. Rh6 {[%clk 0:00:01]}  Rg3 {[%clk 0:00:03]} 65. Ka3 {[%clk 0:00:01]}  Rg4 {[%clk 0:00:03]} 66. Kb2 {[%clk 0:00:01]}  Kc5 {[%clk 0:00:03]} 67. Kc2 {[%clk 0:00:01]}  Ne4 {[%clk 0:00:02]} 0-1


[Site "https://www.chess.com"]